Cogmind - Beta 9.3 @@@ ROGUE MODE // 2019.12.17 @ 20:16:11 // Winter2019/RPGLIKE Player: albenzo Result: Smashed by cave-in Performance ------------- Evolutions (1) 500 Regions Visited (3) 600 Robots Destroyed (5) 25 Value Destroyed (170) 170 Prototype IDs (2) 40 Alien Tech Used (0) 0 Bonus (-133) -133 TOTAL SCORE: 1202 Bonus ------- Follower Combat Kills 33 Friendly Fire -166 Cogmind --------- Core Integrity 0/650 Matter 245/300 Energy 125/125 System Corruption 0% Temperature Cool (0) Movement Walking (120) Location -9/Materials Parts ------- > --- POWER (1) -------- Light Ion Engine > --- PROPULSION (4) --- Carbon-fiber Leg Carbon-fiber Leg Carbon-fiber Leg Carbon-fiber Leg > --- UTILITY (2) ------ Improved Heat Sink Sensor Array > --- WEAPON (3) ------- Rocket Launcher > --- INVENTORY (1) ---- Titanium Leg Peak State ------------ > --- POWER ------------ Light Ion Engine > --- PROPULSION ------- Carbon-fiber Leg Carbon-fiber Leg Carbon-fiber Leg Carbon-fiber Leg > --- UTILITY ---------- Improved Heat Sink Sensor Array > --- WEAPON ----------- Rocket Launcher > --- INVENTORY -------- Titanium Leg [Rating: 19] Favorites ----------- Power Light Ion Engine Engine Light Ion Engine Propulsion Carbon-fiber Leg Leg Carbon-fiber Leg Utility Sensor Array Device Sensor Array Storage High-capacity Matter Pod Weapon Light Assault Rifle Ballistic Gun Light Assault Rifle Launcher Rocket Launcher Build | -11 -10 -10 -9 ------- Run | Scr Mat Min Mat Slots Evolved 6 | . . . 6 Power . | . . . . Propulsion 3 | . . . 3 Utility 1 | . . . 1 Weapon 2 | . . . 2 Parts Attached 12 | 3 3 1 5 Power 1 | 1 . . . Engine 1 | 1 . . . Core . | . . . . Reactor . | . . . . Propulsion 5 | 1 . . 4 Treads . | . . . . Leg 5 | 1 . . 4 Wheel . | . . . . Hover . | . . . . Flight . | . . . . Utility 3 | . 2 . 1 Device 2 | . 1 . 1 Storage 1 | . 1 . . Processor . | . . . . Hackware . | . . . . Protection . | . . . . Artifact . | . . . . Weapon 3 | 1 1 1 . Energy Gun . | . . . . Energy Cannon . | . . . . Ballistic Gun 2 | 1 1 . . Ballistic Cannon . | . . . . Launcher 1 | . . 1 . Special Weapon . | . . . . Impact Weapon . | . . . . Slashing Weapon . | . . . . Piercing Weapon . | . . . . Special Melee Weapon . | . . . . Unidentified Prototypes . | . . . . Parts Lost . | . . . . Power . | . . . . Propulsion . | . . . . Utility . | . . . . Weapon . | . . . . Highest Loss Streak . | . . . . Average Slot Usage (%) 92 | . 95 100 78 Engine 21 | . 25 25 11 Leg 28 | . 25 25 37 Device 17 | . 9 25 18 Storage 4 | . 10 . . Ballistic Gun 11 | . 25 4 . Launcher 9 | . . 20 11 Naked Turns . | . . . . Heaviest Build 9 | 4 8 8 9 Greatest Support 60 | 10 10 10 60 Greatest Overweight (x) 2 | . . . 2 Average Overweight (x) . | . . . . Largest Inventory Capacity 1 | . . . 1 Average Capacity . | . . . . Most Carried 1 | . . . 1 Average Carried . | . . . . Final Capacity 1 | . . . 1 Final Carried 1 | . . . 1 Class Distribution -------------------- 100% | Mutant Dominant Class ---------------- Mutant | -10/Materials Mutant | -10/Mines Mutant | -9/Materials Resources | -11 -10 -10 -9 ----------- Run | Scr Mat Min Mat Matter Collected 404 | 230 70 21 83 Remotely . | . . . . Salvage Created 303 | . 87 . 216 Parts 16 | . 6 . 10 Haulers Intercepted . | . . . . Recyclers Shooed . | . . . . Parts Field Recycled . | . . . . Retrieved Matter . | . . . . Parts Self-Destructed . | . . . . Prevented . | . . . . Kills | -11 -10 -10 -9 ------- Run | Scr Mat Min Mat Combat Hostiles Destroyed 3 | . 1 . 2 Guns 1 | . 1 . . AOE 2 | . . . 2 Classes Destroyed 3 | . 2 . 1 Watcher 1 | . 1 . . Grunt 1 | . 1 . . Sentry 2 | . . . 2 Thug 1 | . . . 1 Best Kill Streak 2 | . 2 . 2 Combat Bots Only 2 | . 1 . 2 Max Kills in Single Turn 1 | . 1 . 1 Gunslinging . | . . . . Exploded 1 | . . . 1 Melee . | . . . . Uniques/NPCs Destroyed . | . . . . Combat | -11 -10 -10 -9 -------- Run | Scr Mat Min Mat Damage Taken 786 | . 57 . 729 Core 651 | . 46 . 605 Absorbed by Shields . | . . . . Redirected to Core 482 | . 34 . 448 Core Remaining (%) 96 | 100 . 92 . Volleys Fired 16 | . 8 . 8 Largest 1 | . 1 . 1 Hottest 33 | . 20 . 33 Shots Fired 16 | . 8 . 8 Gun 8 | . 8 . . Cannon . | . . . . Launcher 8 | . . . 8 Special . | . . . . Kinetic 8 | . 8 . . Thermal . | . . . . Explosive 8 | . . . 8 Electromagnetic . | . . . . Robot Hit Streak 3 | . 3 . 3 Robot Miss Streak 4 | . 2 . 4 Penetration Max . | . . . . Secondary Targets . | . . . . Shots Hit Robots 8 | . 4 . 4 Core Hits 14 | . 4 . 10 Critical Hits . | . . . . Critical Kills . | . . . . Critical Parts Destroyed . | . . . . Melee Attacks . | . . . . Impact . | . . . . Slashing . | . . . . Piercing . | . . . . Sneak Attacks . | . . . . Combat Hostiles . | . . . . Follow-up Attacks . | . . . . Damage Inflicted 389 | . 48 . 341 Guns 48 | . 48 . . Cannons . | . . . . Explosions 341 | . . . 341 Melee . | . . . . Ramming . | . . . . Kinetic 48 | . 48 . . Thermal . | . . . . Explosive 341 | . . . 341 Electromagnetic . | . . . . Impact . | . . . . Slashing . | . . . . Piercing . | . . . . Highest Corruption . | . . . . Average Corruption . | . . . . Corruption Purged . | . . . . Overload Shots . | . . . . Overflow Damage 13 | . . . 13 Projectiles . | . . . . Explosions 13 | . . . 13 Melee . | . . . . Knockbacks . | . . . . Impact . | . . . . Kinetic . | . . . . Secondary . | . . . . Self-Inflicted Damage 113 | . . . 113 Shots 5 | . . . 5 Rammed . | . . . . Targets Rammed . | . . . . Kicked . | . . . . Crushed . | . . . . Highest Temperature 6 | . 6 . . Average Temperature 6 | . 6 . . Received Heat Transfer 48 | . 30 . 18 Siege Activations . | . . . . Robots Corrupted . | . . . . Combat Hostiles . | . . . . Parts Fried . | . . . . Impact Corruptions . | . . . . Robots Melted . | . . . . Combat Hostiles . | . . . . Parts Melted . | . . . . Heat Transferred . | . . . . Parts Sabotaged . | . . . . Parts Stolen . | . . . . Parts Stripped . | . . . . Power Chain Reactions . | . . . . Missiles Intercepted . | . . . . Alert | -11 -10 -10 -9 ------- Run | Scr Mat Min Mat Peak Influence 199 | . 51 19 199 Average Influence 30 | . 23 19 66 Maximum Alert Level . | . . . . Low Security (%) 100 | 100 100 100 100 Level 1 . | . . . . Level 2 . | . . . . Level 3 . | . . . . Level 4 . | . . . . Level 5 . | . . . . High Security . | . . . . Max Security . | . . . . Squads Dispatched 1 | . . . 1 Investigation . | . . . . Extermination . | . . . . Reinforcement 1 | . . . 1 Assault . | . . . . Garrison . | . . . . Intercept . | . . . . Construction Impeded . | . . . . Haulers Reinforced . | . . . . Stealth | -11 -10 -10 -9 --------- Run | Scr Mat Min Mat Distress Signals . | . . . . Communications Jammed . | . . . . Distress Signals . | . . . . Times Spotted 9 | . 3 . 6 Peak Tracking Total 4 | . 1 . 4 Tactical Retreats . | . . . . Traps | -11 -10 -10 -9 ------- Run | Scr Mat Min Mat Traps Triggered . | . . . . Indirectly . | . . . . Trap Hack Attempts . | . . . . Triggered . | . . . . Disarmed . | . . . . Reprogrammed . | . . . . Reused . | . . . . Traps Extracted . | . . . . Installed . | . . . . Triggered . | . . . . Machines | -11 -10 -10 -9 ---------- Run | Scr Mat Min Mat Machines Disabled 3 | . . . 3 Max in Single Turn 1 | . . . 1 Machines Sabotaged . | . . . . Garrisons Compromised . | . . . . Overloaded Fab Kills . | . . . . Fab Network Shutdowns . | . . . . Hacking | -11 -10 -10 -9 --------- Run | Scr Mat Min Mat Machines Accessed 4 | . 4 . . Terminals 4 | . 4 . . Fabricators . | . . . . Repair Stations . | . . . . Recycling Units . | . . . . Scanalyzers . | . . . . Garrison Access . | . . . . Total Hacks 11 | . 11 . . Successful 11 | . 11 . . Failed . | . . . . Catastrophic . | . . . . Database Lockouts . | . . . . Manual . | . . . . Terminals 11 | . 11 . . Fabricators . | . . . . Repair Stations . | . . . . Recycling Units . | . . . . Scanalyzers . | . . . . Garrison Access . | . . . . Terminal Hacks 11 | . 11 . . Record 4 | . 4 . . Prototype ID Bank 1 | . 1 . . Branch Access Points 1 | . 1 . . Emergency Access Points 1 | . 1 . . Alert Level 3 | . 3 . . Dispatch Records 1 | . 1 . . Fabricator Hacks . | . . . . Repair Station Hacks . | . . . . Recycling Unit Hacks . | . . . . Scanalyzer . | . . . . Garrison Access Hacks . | . . . . Unauthorized Hacks . | . . . . Terminals . | . . . . Fabricators . | . . . . Repair Stations . | . . . . Recycling Units . | . . . . Scanalyzers . | . . . . Garrison Access . | . . . . Data Cores Recovered . | . . . . Used . | . . . . Hacking Detections 4 | . 4 . . Full Trace Events . | . . . . Feedback Events . | . . . . Feedback Blocked . | . . . . Robot Schematics Acquired . | . . . . Robots Built . | . . . . Matter . | . . . . Time . | . . . . Total Robot Build Rating . | . . . . Part Schematics Acquired . | . . . . Parts Built . | . . . . Matter . | . . . . Time . | . . . . Total Part Build Rating . | . . . . Parts Repaired . | . . . . Time . | . . . . Parts Recycled . | . . . . Recycled Matter . | . . . . Retrieved Matter . | . . . . Retrieved Components . | . . . . Parts Scanalyzed . | . . . . Part Schematics Acquired . | . . . . Parts Damaged . | . . . . Bothacking | -11 -10 -10 -9 ------------ Run | Scr Mat Min Mat Used RIF Installer . | . . . . Robots Hacked . | . . . . Non-combat . | . . . . Combat . | . . . . Robot Hacks Applied . | . . . . Relay Couplers Released . | . . . . Robots Rewired . | . . . . Allies Hacked . | . . . . Hacks Repelled . | . . . . Allies | -11 -10 -10 -9 -------- Run | Scr Mat Min Mat Total Allies 2 | . . 2 . Largest Group 2 | . . 2 2 Highest-Rated Group 48 | . . 48 48 Highest-Rated Ally 31 | . . 31 31 Total Orders . | . . . . Ally Attacks 9 | . . . 9 Total Damage 84 | . . . 84 Kills 1 | . . . 1 Allies Corrupted . | . . . . Allies Melted . | . . . . Intel | -11 -10 -10 -9 ------- Run | Scr Mat Min Mat Robot Analysis Total . | . . . . Derelict Logs Recovered 2 | . . 2 . Drone Launches . | . . . . Drone Recoveries . | . . . . Exploration | -11 -10 -10 -9 ------------- Run | Scr Mat Min Mat Turns Passed 552 | 43 215 167 127 Spaces Moved 412 | 39 155 133 85 Core 12 | 11 . . 1 Treads . | . . . . Legs 400 | 28 155 133 84 Wheels . | . . . . Hover . | . . . . Flight . | . . . . Fastest Speed 50 | 50 120 120 120 Average Speed 118 | 100 120 120 120 Slowest Speed 150 | 120 120 120 150 Overloaded Moves . | . . . . Propulsion Burnouts . | . . . . Robots Hopped . | . . . . Cave-ins Triggered 2 | . . . 2 Exploration Rate (%) 24 | 4 37 45 11 Regions Visited 3 Branch Regions 1 Pre-discovered Areas . | . . . . Known Exits Taken 2 | . 1 1 . Unknown Exits Taken 1 | 1 . . . Scrap Searched . | . . . . Spaces Dug . | . . . . Terrain Destroyed 53 | . . . 53 Melee . | . . . . Projectile . | . . . . AOE 53 | . . . 53 Actions | -11 -10 -10 -9 --------- Run | Scr Mat Min Mat Total 459 | 41 177 140 101 Wait 17 | . 10 6 1 Move 409 | 38 154 132 85 Hop . | . . . . Pick Up 1 | . . . 1 Fast Attach 12 | 3 3 1 5 Attach . | . . . . Detach . | . . . . Swap . | . . . . Drop 4 | . 2 1 1 Fire 16 | . 8 . 8 Melee . | . . . . Ram . | . . . . Kick . | . . . . Crush . | . . . . Escape Stasis . | . . . . Rewire . | . . . . Trap . | . . . . Miscellaneous . | . . . . Route ------- -11/Scrapyard -10/Materials (discovered 2 exits: *Min x2) -10/Mines (discovered 2 exits: *Mat x2) -9/Materials History --------- Turn | Location | Event 11 | -11/Scrapyard | Discovered new exit (range 15) 44 | -11/Scrapyard | Entered Materials 187 | -10/Materials | Identified exit to Mines 259 | -10/Materials | Entered Mines 266 | -10/Mines | Received a Rocket Launcher from a helpful Derelict 310 | -10/Mines | Build established: Mutant 383 | -10/Mines | Identified exit to Materials 408 | -10/Mines | Discovered exit to Materials (range 11) 413 | -10/Mines | Learned Materials non-interactive machine intel 426 | -10/Mines | Entered Materials 426 | -9/Materials | Accompanied by 2 allies 427 | -9/Materials | Loaded intel: 57 non-interactive machine locations 428 | -9/Materials | Reached level 2 431 | -9/Materials | Led the pair of lost Derelicts to an unsafe place 438 | -9/Materials | Upgraded with Propulsion slot (x3) 438 | -9/Materials | Upgraded with Utility slot (x1) 438 | -9/Materials | Upgraded with Weapon slot (x2) 526 | -9/Materials | Met 8R-AWN 544 | -9/Materials | Attacked by 8R-AWN 550 | -9/Materials | Crushed by falling debris 550 | -9/Materials | Core integrity fell below 50% 554 | -9/Materials | Crushed by falling debris 554 | -9/Materials | Smashed by cave-in Last Messages --------------- 00548_ Penetrated by HV Slug. 00548_ HV Slug penetrates Earth. 00549_ U-05 Engineer lays Concrete. 00550_ The unstable cave ceiling collapses. 00550_ Crushed by falling debris. [Achievement: Unlikely Earthworm] 00550_ U-05 Engineer builds a Wall. 00551_ Penetrated by HV Slug. 00551_ HV Slug penetrates Wall. 00551_ Penetrated by HV Slug. 00551_ HV Slug penetrates Earth. 00551_ Terminal disabled. 00553_ Destroyed Wheel. 00553_ Destroyed Welding Torch. 00553_ Penetrated by HV Slug. 00553_ HV Slug penetrates Wall. 00553_ Penetrated by HV Slug. 00553_ HV Slug penetrates Wall. 00554_ The unstable cave ceiling collapses. 00554_ Crushed by falling debris. Map ----- +----------------------------------------------------+ | ??########??# """ ## """ #??????????????????? | | ??#== !!#??# """ ## """ #??????????????????? | | ??#= !#??# ## """ #???????"""????????? | | ??# = #??# ## #???????"""????????? | | ??#### #######+########+####???????"""????????? | | ?????# #????????????????????? | | ?????# #?????????"""????????? | | ?????# #?????????"""????????? | | ?????################### #?????????"""????????? | | ????????????????######?# #????? #?????????????? | | ?????????????""" """ ?# #????* #####?????????? | | ?????????????""" """ # ####![ ??????""" | | ?????????????""" """ # ??????""" | | ???????"""?# + ??????""" | | ???????"""?# # ????????? | | ???????"""?# # #####+######?????????? | | ???????????# ?# # #???????????? | | ???????????###########?# # """ |#???????????? | | ???????????????????????# # #???????????? | | ????????????????????##?# + #???????????? | | ????????????????????# ## # #???????????? | | ????????????????????? # # #???????????? | | ?????????????????????# ;# ## #???????????? | | ?????????????????????# # ## = #???????????? | | ?????????????????????# u = #???????????? | | ?????????????????????# @ = ##???????????? | | ????????????????????# [z% # #????????????? | | ????????????????+ ######????????????? | | ????????????????# g #?????????????????? | | ???????????"""??+ u #?????????????????? | | ???????????"""??# ! ##?????????????????? | | ???????????"""??#=%* ! * "??????????????????? | | ???????????"""??# " " ! "T"?????????????????? | | ???????????"""??# " # ????????????????? | | ????????????????# # ????????????????? | | ????????????????###+####### """ ????????????????? | | ??????????????????????????? """?????????????????? | | ????????????????????????????"""???"""???????????? | | ???????????????????????????? ?????"""???????????? | | ????????????????????????????"""???"""???????????? | | ????????????????????????????"""?????????????????? | | ????????????????????????????"""?????????????????? | | ????????????????????????????????????????????????? | | ????????????????????????????????????????????????? | | ??????????????????"""???????????????????????????? | | ??????????????????"""???????????????????????????? | | ??????????????????"""???????????????????????????? | | ????????????????????????????????????????????????? | | ??????????????????"""???????????????????????????? | | ??????????????????"""??????????"""??????????????? | +----------------------------------------------------+ Best States ------------- Heat Dissipation 39 Energy Generation 10 Energy Capacity 125 Matter Stores 345 Matter Capacity 500 Sight Range 16 Robot Scan Range 10 Terrain Scan Density 10 Evasion (%) 50 Item Schematics ----------------- None Robot Schematics ------------------ None Fabricated ------------ Nothing Alien Tech Used ----------------- None Achievements -------------- Backstab Unlikely Earthworm Challenges ------------ None RPGLIKE | -11 -10 -10 -9 --------- Run | Scr Mat Min Mat Levels Raised 1 | . . . 1 XP Earned 5886 | 3000 135 500 2251 XP Spent 4475 | . . . 4475 Upgrades 8 | . . . 8 Propulsion Slot 3 | . . . 3 Utility Slot 1 | . . . 1 Weapon Slot 2 | . . . 2 Core Integrity 1 | . . . 1 Inventory Capacity 1 | . . . 1 Protomatter Created . | . . . . Protomatter Decayed 59 | . . . 59 Game ------ Seed ChainTiamatShielding Manual? 0 Play Time 00:09:17 Cumulative 7.0 hours Start 2019.12.17 @ 20:09:12 End 2019.12.17 @ 20:16:11 Sessions 1 Manual Loads 0 Difficulty Rogue Special Mode Winter2019/RPGLIKE Game No. 20 Rogue 20 Adventurer 0 Explorer 0 Win Type - Total 0 Types 0/0/0/0/0/0/0 Lore% 12 Gallery% 18 Achievement% 16 Wizard Run 0 Options --------- ASCII 0 Keyboard 0 Movement Vi Keybinds 0 Fullscreen 2 Font 24/Proggy Map View 76x50 Tactical HUD 1 Map Filters NONE Filters NONE Steam 1 RUN: 6cf1a60d-19b5-4bf1-a39f-24cd3c3c50d8